bitfinex/quotes_SOLUSD_20260119
["timestamp","ask_amount","ask_price","bid_price","bid_amount"]
[1768866200667,0.49225359,133.72,133.69,0.45121742]
[1768866202183,7.97057789,133.72,133.69,0.45121742]
[1768866205664,7.93284177,133.72,133.69,0.45121742]
[1768866206777,16.38,133.75,133.69,0.45121742]
[1768866206982,0.45451747,133.74,133.72,0.48709919]
[1768866208276,7.93195284,133.74,133.68,0.48709919]
[1768866208478,7.93195284,133.74,133.71,3.49449473]
[1768866210379,0.45451747,133.75,133.72,0.48709919]
[1768866210555,96.09960981,133.77,133.74,0.48709919]
[1768866210873,0.55451747,133.77,133.74,0.48709919]
[1768866211460,7.9308453,133.76,133.74,0.48709919]
[1768866212171,7.87084531,133.76,133.74,0.48709919]
[1768866212956,8.03027708,133.77,133.74,0.48709919]
[1768866214779,0.45451747,133.75,133.7,0.48709919]
[1768866214955,0.45451747,133.75,133.7,3.00739554]
[1768866215160,0.45451747,133.74,133.69,3.00739554]
[1768866215877,0.45451747,133.73,133.68,10.48762877]
[1768866216563,7.93248568,133.73,133.68,10.48762877]
[1768866216764,7.93248568,133.73,133.69,3.00739554]
[1768866217172,7.93248568,133.73,133.7,0.48709919]
[1768866217675,0.45451747,133.72,133.68,3.49449473]
[1768866217883,0.45451747,133.72,133.68,0.48709919]
[1768866218775,7.93306719,133.72,133.68,0.48709919]
[1768866224871,7.47854972,133.72,133.68,0.48709919]
[1768866225072,7.93074574,133.72,133.68,0.48709919]
[1768866227097,0.45219602,133.71,133.68,0.48709919]
[1768866227394,0.45219602,133.69,133.66,0.45180085]
[1768866228578,0.45219602,133.69,133.64,0.45180085]
[1768866228579,0.45219602,133.68,133.64,0.45180085]
[1768866228775,0.45219602,133.67,133.63,0.45180085]
[1768866229890,0.45219602,133.67,133.62,0.45180085]
[1768866229891,0.45219602,133.66,133.62,0.45180085]
[1768866230068,0.45219602,133.65,133.62,0.45180085]
[1768866231607,7.93453019,133.65,133.62,0.45180085]
[1768866231781,0.45219602,133.65,133.62,0.45180085]
[1768866232731,7.93465668,133.65,133.62,0.45180085]
[1768866232878,0.49275529,133.64,133.59,7.68539746]
[1768866233082,0.4327553,133.64,133.61,0.47045482]
[1768866236807,0.49275529,133.63,133.61,0.47045482]
[1768866237118,0.49275529,133.63,133.6,0.47045482]
[1768866238890,7.97638956,133.63,133.6,0.47045482]
[1768866240121,0.49275529,133.62,133.6,0.47045482]
[1768866240813,0.49275529,133.62,133.59,0.67045482]
[1768866241193,0.49275529,133.62,133.6,0.47045482]
[1768866241393,0.49275529,133.62,133.59,0.2]
[1768866242424,0.49275529,133.61,133.58,0.2]
[1768866242601,0.37275529,133.61,133.58,0.2]
[1768866243017,3.01157822,133.6,133.57,0.2]
[1768866243195,7.48559023,133.59,133.57,0.2]
[1768866243711,7.48529138,133.6,133.57,0.67045482]
[1768866244594,7.77972437,133.6,133.57,0.67045482]
[1768866248411,10.79130259,133.6,133.57,0.67045482]
[1768866251622,7.77972437,133.6,133.57,0.67045482]
[1768866254533,7.48529138,133.6,133.58,0.47045482]
[1768866254833,7.48390959,133.62,133.59,0.47045482]
[1768866257832,7.77834258,133.62,133.59,0.47045482]
[1768866262136,7.48390959,133.62,133.59,0.47045482]
[1768866265541,0.29443299,133.61,133.57,0.2]
[1768866265727,0.29443299,133.61,133.57,0.66665463]
[1768866266041,0.29443299,133.61,133.58,0.46665463]
[1768866266227,10.7899208,133.62,133.58,0.46665463]
[1768866266746,0.29443299,133.61,133.58,0.46665463]
[1768866273238,7.77907308,133.61,133.58,0.46665463]
[1768866282951,7.48464009,133.61,133.58,0.46665463]
[1768866283145,7.48420741,133.62,133.58,0.46665463]
[1768866283559,7.77806387,133.63,133.6,0.49158908]
[1768866287778,7.48363088,133.63,133.6,0.49158908]
[1768866288846,7.77806387,133.63,133.6,0.49158908]
[1768866300175,10.79081699,133.63,133.6,0.49158908]
[1768866300374,0.29443299,133.6,133.57,0.66367987]
[1768866300560,0.46013497,133.61,133.57,0.2]
[1768866300875,0.46013497,133.61,133.57,3.21275312]
[1768866301380,7.48418685,133.62,133.59,3.01275312]
[1768866302484,7.48418685,133.62,133.6,0.46367987]
[1768866302976,0.46013497,133.63,133.6,0.46367987]
[1768866303183,0.46013497,133.64,133.6,0.46367987]
[1768866303379,7.94316891,133.64,133.6,0.46367987]
[1768866306799,0.46013497,133.63,133.6,0.46367987]
[1768866309003,7.943669,133.63,133.6,0.46367987]
[1768866313816,18.70475992,133.66,133.63,0.46367987]
[1768866314005,7.48244863,133.65,133.63,0.34379999]
[1768866314204,0.46013497,133.64,133.6,3.01275312]
[1768866314504,7.94191431,133.66,133.62,3.01275312]
[1768866316012,7.94191431,133.66,133.63,0.46367987]
[1768866316512,0.46013497,133.65,133.61,0.46367987]
[1768866317302,3.47288809,133.65,133.61,0.46367987]
[1768866317593,0.46013497,133.65,133.61,0.46367987]
[1768866317798,0.46013497,133.65,133.62,0.46367987]
[1768866318014,7.94237551,133.65,133.62,0.46367987]
[1768866322024,0.46013497,133.64,133.6,0.46367987]
[1768866322320,0.46013497,133.63,133.58,0.46367987]
[1768866322505,3.01275312,133.63,133.58,0.46367987]
[1768866322819,0.46013497,133.62,133.58,0.46367987]
[1768866323234,0.47893692,133.61,133.58,0.46367987]
[1768866327019,7.96353346,133.61,133.58,0.46367987]
[1768866327222,0.47893692,133.6,133.57,0.67283257]
[1768866328727,7.96353346,133.61,133.58,0.47283257]
[1768866329120,0.47893692,133.61,133.58,3.48558569]
[1768866329310,0.41893693,133.61,133.58,0.47283257]
[1768866339035,0.35893694,133.61,133.58,0.47283257]
[1768866339947,98.55784546,133.64,133.59,0.47283257]
[1768866340738,95.54509234,133.64,133.59,0.47283257]
[1768866341131,0.47893692,133.63,133.59,7.95828788]
[1768866341516,0.47893692,133.63,133.59,7.48545531]
[1768866341718,0.47893692,133.63,133.6,0.4645126]
[1768866342835,0.49227654,133.62,133.59,0.4645126]
[1768866343733,0.49227654,133.62,133.58,0.4645126]
[1768866344241,0.49227654,133.61,133.58,0.4645126]
[1768866345936,0.49227654,133.6,133.57,0.6645126]
[1768866347141,0.49227654,133.6,133.57,0.2]
[1768866347347,0.49227654,133.59,133.57,0.2]
[1768866347561,0.49227654,133.59,133.56,0.2]
[1768866348055,0.49227654,133.59,133.56,0.6645126]
[1768866349135,7.97806206,133.59,133.56,0.6645126]
[1768866354947,7.97806206,133.59,133.56,0.6682583]
[1768866357973,0.4889772,133.58,133.56,0.2]
[1768866358267,0.4889772,133.57,133.54,0.2]
[1768866358465,0.15799276,133.56,133.54,0.2]
[1768866358673,0.15799276,133.57,133.54,0.6682583]
[1768866359049,7.64524001,133.57,133.54,0.6682583]
[1768866359672,10.65953826,133.57,133.54,0.2]
[1768866359867,7.64524001,133.57,133.54,0.2]
[1768866360171,10.65953826,133.57,133.54,0.2]
[1768866361774,26.36201772,133.57,133.54,0.2]
[1768866362152,29.37631597,133.57,133.54,0.2]
[1768866363877,7.64537986,133.56,133.54,0.2]
[1768866364177,7.4873871,133.56,133.54,0.04200724]
[1768866365555,7.4873871,133.56,133.54,0.51026554]
[1768866366055,7.4873871,133.56,133.54,0.04200724]
[1768866367484,3.01429825,133.56,133.54,0.04200724]
[1768866367672,3.01429825,133.57,133.54,0.04200724]
[1768866368374,3.01429825,133.57,133.54,0.51026554]
[1768866368555,3.01429825,133.57,133.54,0.04200724]
[1768866370183,7.48727163,133.56,133.54,0.04200724]
[1768866377984,3.01429825,133.55,133.53,0.2]
[1768866379088,10.50266468,133.55,133.53,0.2]
[1768866379769,7.48836643,133.55,133.53,0.2]
[1768866380091,10.50266468,133.55,133.53,0.2]
[1768866380467,29.22224536,133.55,133.52,0.4682583]
[1768866381682,3.01429825,133.54,133.5,0.2]
[1768866381884,3.48255655,133.54,133.5,0.2]
[1768866382564,0.4682583,133.54,133.5,0.2]
[1768866382764,3.48255655,133.54,133.5,0.2]
[1768866383398,0.4682583,133.52,133.5,0.2]
[1768866383689,7.48951467,133.52,133.5,0.66568149]
[1768866384393,0.4682583,133.5,133.48,1e-08]
[1768866385688,7.49119784,133.49,133.48,1e-08]
[1768866390324,16.4,133.52,133.48,1e-08]
[1768866390325,16.4,133.52,133.49,0.46568149]
[1768866390592,19.19156946,133.53,133.49,0.46568149]
[1768866390593,7.48918946,133.53,133.49,0.46568149]
[1768866391092,103.5116608,133.54,133.5,0.46568149]
[1768866391391,7.48797007,133.55,133.51,0.46568149]
[1768866391605,7.96535474,133.56,133.52,0.46568149]
[1768866393211,7.96535474,133.56,133.53,0.46568149]
[1768866393830,7.48693476,133.57,133.54,0.46568149]
[1768866394106,7.96485743,133.57,133.54,0.46568149]
[1768866394486,35.11449007,133.59,133.55,0.46568149]
[1768866394487,7.48625738,133.58,133.55,0.46568149]
[1768866395508,0.47792267,133.57,133.54,0.46568149]
[1768866395709,0.47792267,133.57,133.49,21.74193444]
[1768866395710,0.47792267,133.56,133.52,3.01429825]
[1768866395902,3.01429825,133.57,133.52,3.01429825]
[1768866395903,0.47792267,133.57,133.53,0.46568149]
[1768866396110,0.47792267,133.57,133.54,0.46568149]
[1768866396492,7.96418005,133.58,133.54,0.46568149]
[1768866398013,0.47792267,133.57,133.54,0.46568149]
[1768866401316,7.96488316,133.57,133.54,0.46568149]
[1768866401518,0.48998383,133.56,133.53,0.46776691]
[1768866402214,7.97694432,133.57,133.53,0.46776691]
[1768866404310,7.97694432,133.57,133.53,3.01429825]
[1768866404517,7.97694432,133.57,133.54,0.46776691]
[1768866407121,0.48998383,133.57,133.53,0.46776691]
[1768866407294,0.48998383,133.57,133.54,0.46776691]
[1768866408224,7.977019,133.57,133.54,0.46776691]
[1768866414739,0.46646118,133.55,133.51,0.46520735]
[1768866415818,0.46646118,133.54,133.51,0.46520735]
[1768866416531,7.95497758,133.54,133.51,0.46520735]
[1768866417428,0.46646118,133.53,133.5,0.46520735]
[1768866417608,0.46646118,133.54,133.51,0.46520735]
[1768866418513,7.95500095,133.54,133.51,0.46520735]
[1768866421336,7.95449882,133.55,133.51,0.46520735]
[1768866422135,7.95449882,133.55,133.5,3.01673331]
[1768866422136,0.46646118,133.54,133.5,0.46520735]
[1768866423636,7.9553384,133.54,133.5,0.46520735]
[1768866424017,7.48800852,133.55,133.51,0.46520735]
[1768866424417,7.9544697,133.55,133.51,0.46520735]
[1768866427538,3.01673331,133.56,133.52,0.46520735]
[1768866427539,7.95373281,133.56,133.52,0.46520735]
[1768866427848,7.95373281,133.56,133.53,0.46520735]
[1768866428936,7.48690935,133.57,133.54,0.46520735]
[1768866429242,7.48690935,133.57,133.54,0.40520737]
[1768866429643,0.46646118,133.57,133.54,0.40520737]
[1768866432044,7.9526118,133.58,133.54,0.40520737]
[1768866433848,0.46646118,133.57,133.54,0.40520737]
[1768866436244,7.95343079,133.57,133.54,0.40520737]
[1768866438453,16.4,133.6,133.55,0.46520735]
[1768866438635,0.46646118,133.6,133.57,0.46520735]
[1768866438954,7.95153527,133.6,133.57,0.46520735]
[1768866441154,0.46646118,133.61,133.58,0.46520735]
[1768866442241,7.95095136,133.61,133.58,0.46520735]
[1768866443631,0.45333164,133.6,133.56,0.47665399]
[1768866444436,7.9386354,133.6,133.56,0.47665399]
[1768866444638,7.9386354,133.6,133.56,3.4933873]
[1768866446559,7.9386354,133.6,133.57,0.47665399]
[1768866447055,7.9386354,133.6,133.55,7.48760921]
[1768866447056,0.45333164,133.59,133.55,3.4933873]
[1768866447366,0.45333164,133.59,133.56,0.47665399]
[1768866454349,7.93907343,133.59,133.56,0.47665399]
[1768866461166,7.48574179,133.59,133.56,0.47665399]
[1768866461468,7.96189702,133.56,133.54,0.47665399]
[1768866461769,7.90803712,133.56,133.53,0.46013607]
[1768866463858,0.47462539,133.55,133.51,0.46013607]
[1768866468473,7.90870068,133.55,133.51,0.46013607]
[1768866469472,0.42080703,133.55,133.52,0.46013607]
[1768866469970,7.90864388,133.55,133.52,0.46013607]
[1768866471476,0.42080703,133.55,133.52,0.46013607]
[1768866473385,7.94595548,133.57,133.53,0.48206287]
[1768866473569,0.45903166,133.57,133.54,0.48206287]
[1768866475858,7.94576003,133.57,133.54,0.48206287]
[1768866479282,0.45903166,133.56,133.54,0.48206287]
[1768866479887,0.45903166,133.56,133.52,10.48645721]
[1768866481883,0.45903166,133.56,133.53,0.48206287]
[1768866482081,7.94576003,133.57,133.53,0.48206287]
[1768866482278,103.49053474,133.58,133.54,0.48206287]
[1768866482581,0.45903166,133.59,133.55,0.48206287]
[1768866483485,7.94481539,133.59,133.55,0.48206287]
[1768866485483,7.94481539,133.59,133.55,3.01514412]
[1768866485689,7.94481539,133.59,133.56,0.48206287]
[1768866486285,0.45903166,133.59,133.56,0.48206287]
[1768866486477,0.45903166,133.59,133.56,3.49720699]
[1768866486991,7.94367643,133.61,133.58,0.48206287]
[1768866489872,7.94309197,133.62,133.58,3.49720699]
[1768866490086,0.45903166,133.62,133.59,0.48206287]
[1768866490418,0.45903166,133.62,133.6,0.48206287]
[1768866492299,7.48349678,133.63,133.6,0.48206287]
[1768866492300,0.45903166,133.63,133.6,0.48206287]
[1768866493292,0.45903166,133.64,133.6,3.01514412]
[1768866493498,0.45903166,133.64,133.61,0.48206287]
[1768866494493,7.94198299,133.64,133.61,0.48206287]
[1768866494800,0.45903166,133.64,133.61,3.49720699]
[1768866495177,0.45903166,133.64,133.62,3.01514412]
[1768866495508,0.45903166,133.64,133.61,0.48206287]
[1768866495678,0.45903166,133.64,133.61,3.49720699]
[1768866495994,0.45903166,133.64,133.62,3.01514412]
[1768866496900,0.45903166,133.65,133.62,3.49720699]
[1768866497097,7.94021656,133.67,133.64,0.48206287]
[1768866497409,0.45903166,133.67,133.64,3.49720699]
[1768866497580,0.45903166,133.67,133.64,0.48206287]
[1768866498498,7.93968779,133.68,133.64,0.48206287]
[1768866498676,7.93968779,133.68,133.65,0.48206287]
[1768866499186,0.45903166,133.68,133.65,0.48206287]
[1768866499498,0.45903166,133.68,133.65,7.96427954]
[1768866499691,8.0392917,133.69,133.66,0.48206287]
[1768866500012,8.0392917,133.69,133.65,0.48206287]
[1768866500013,0.45903166,133.68,133.65,0.48206287]
[1768866500177,0.45903166,133.68,133.64,0.48206287]
[1768866500905,0.45903166,133.68,133.65,0.48206287]
[1768866505704,0.49986331,133.66,133.62,0.50206259]
[1768866505894,3.51500743,133.66,133.62,0.50206259]
[1768866506212,3.01514412,133.67,133.64,0.50206259]
[1768866506388,3.51500743,133.67,133.64,0.05282989]
[1768866506702,0.49986331,133.67,133.63,7.48327966]
[1768866507409,0.49986331,133.67,133.63,6.98327966]
[1768866508014,0.49986331,133.67,133.62,7.48390959]
[1768866508305,3.51500743,133.67,133.62,7.48390959]
[1768866508513,0.49986331,133.66,133.63,0.08718722]
[1768866511810,0.49986331,133.67,133.63,0.08718722]
[1768866512612,0.49986331,133.66,133.63,0.08718722]
[1768866517118,0.49986331,133.66,133.63,0.05718722]
[1768866524815,0.53043191,133.65,133.6,69.0781128]
[1768866525015,0.53043191,133.63,133.59,7.57867247]
[1768866526426,0.53043191,133.62,133.58,7.58359723]
[1768866527320,0.53043191,133.62,133.59,0.09772693]
[1768866527943,0.53043191,133.62,133.58,7.58574931]
[1768866528430,0.53043191,133.62,133.59,0.10200638]
[1768866528623,0.53043191,133.61,133.57,7.58850073]
[1768866529528,0.53043191,133.61,133.57,10.60364485]
[1768866529822,0.53043191,133.62,133.59,0.10410931]
[1768866530032,0.53043191,133.62,133.58,10.60504418]
[1768866530404,0.53043191,133.62,133.58,7.58990006]
[1768866530606,0.53043191,133.62,133.58,10.60504418]
[1768866532232,0.53043191,133.62,133.58,3.11925343]
[1768866532424,8.01456506,133.62,133.58,3.11925343]
[1768866532811,0.53043191,133.61,133.58,3.11925343]
[1768866533213,0.53043191,133.61,133.58,0.10410931]
[1768866533516,0.53043191,133.61,133.58,3.11925343]
[1768866534545,0.5129812,133.62,133.59,0.11622926]
[1768866534721,0.5129812,133.62,133.58,10.61719849]
[1768866536646,3.52812532,133.59,133.55,0.12008611]
[1768866536942,0.5129812,133.59,133.56,0.12008611]
[1768866537819,0.5129812,133.59,133.56,3.13523023]
[1768866538342,0.5129812,133.61,133.58,3.138999]
[1768866538642,0.5129812,133.61,133.58,3.01514412]
[1768866539031,0.5129812,133.61,133.58,3.01307322]
[1768866539933,0.5129812,133.61,133.57,10.62342338]
[1768866541240,0.5129812,133.62,133.59,3.14061079]
[1768866541616,0.5129812,133.64,133.61,3.01307322]
[1768866541818,0.5129812,133.64,133.61,3.14242047]
[1768866542245,0.5129812,133.64,133.62,3.01307322]
[1768866542436,0.5129812,133.67,133.62,0.13113614]
[1768866542740,0.5129812,133.65,133.61,0.13113614]
[1768866542947,0.5129812,133.65,133.63,3.01307322]
[1768866551560,0.5129812,133.65,133.62,7.61465534]
[1768866551856,0.5129812,133.65,133.63,3.01307322]
[1768866552978,0.5129812,133.65,133.62,7.61465534]
[1768866553157,0.5129812,133.65,133.63,3.01307322]
[1768866555756,0.5129812,133.64,133.61,3.01307322]
[1768866555941,0.5129812,133.64,133.6,3.01307322]
[1768866556142,0.5129812,133.63,133.6,3.01307322]
[1768866560159,0.5129812,133.63,133.59,7.63812057]
[1768866560351,0.5129812,133.63,133.6,3.01307322]
[1768866560552,0.5129812,133.63,133.59,7.63812057]
[1768866560860,0.5129812,133.63,133.6,3.01307322]
[1768866562359,0.5129812,133.63,133.6,10.49805906]
[1768866564059,0.53449613,133.64,133.61,3.01307322]
[1768866570565,0.53449613,133.63,133.6,3.01307322]
[1768866570767,0.53449613,133.63,133.59,3.01307322]
[1768866571357,0.53449613,133.63,133.59,10.49861164]
[1768866574862,0.53449613,133.63,133.59,10.67854906]
[1768866575184,0.53449613,133.63,133.6,3.19301064]
[1768866576879,0.53449613,133.63,133.6,3.01307322]
[1768866579090,0.53449613,133.63,133.59,7.66787761]
[1768866579269,0.53449613,133.63,133.6,3.01307322]
[1768866579588,0.53449613,133.63,133.6,10.49809855]
[1768866582885,0.53449613,133.63,133.6,10.68842006]
[1768866583090,0.53449613,133.63,133.61,3.01307322]
[1768866584292,0.53449613,133.63,133.6,10.68842006]
[1768866584690,0.53449613,133.63,133.6,7.67534684]
[1768866584987,0.53449613,133.63,133.6,10.68842006]
[1768866585192,0.53449613,133.63,133.6,7.67534684]
[1768866585493,0.53449613,133.63,133.6,10.68842006]
[1768866585790,0.53449613,133.63,133.6,10.49809855]
[1768866586290,0.53449613,133.63,133.6,10.69269979]
[1768866591293,0.53449613,133.63,133.6,7.67962657]
[1768866591489,0.53449613,133.63,133.6,10.69269979]
[1768866592398,0.53449613,133.63,133.61,3.01307322]
[1768866594692,0.53449613,133.63,133.61,2.51307322]
[1768866595699,0.53449613,133.63,133.6,10.69269979]
[1768866595999,0.53449613,133.63,133.61,3.01307322]
[1768866596999,0.53449613,133.63,133.6,7.67962657]
[1768866597200,0.53449613,133.63,133.61,3.01307322]
[1768866598017,0.56563155,133.65,133.62,3.21938859]
[1768866598203,0.56563155,133.65,133.63,3.01307322]
[1768866598405,0.56563155,133.65,133.62,3.21938859]
[1768866598697,0.56563155,133.65,133.63,3.01307322]
[1768866600506,0.56563155,133.65,133.62,7.6901372]
[1768866600812,0.56563155,133.65,133.63,3.01307322]
[1768866601100,0.56563155,133.65,133.63,3.01076131]
[1768866602503,0.56563155,133.66,133.63,10.70470192]
[1768866602695,0.56563155,133.66,133.64,3.01076131]
[1768866603014,0.56563155,133.66,133.62,7.48363609]
[1768866603203,0.56563155,133.65,133.61,26.89498097]
[1768866603583,0.56563155,133.65,133.63,3.01076131]
[1768866606914,0.56563155,133.66,133.64,3.01076131]
[1768866607099,0.56563155,133.67,133.65,3.01076131]
[1768866608997,0.56563155,133.67,133.65,7.48217201]
[1768866609196,0.56563155,133.67,133.65,10.49293332]
[1768866609601,0.56563155,133.68,133.65,10.70944644]
[1768866613222,0.56563155,133.68,133.65,3.01076131]
[1768866617000,0.56563155,133.68,133.64,7.70212834]
[1768866617200,0.56563155,133.68,133.65,3.01076131]
[1768866618105,0.56563155,133.68,133.65,3.2333285]
[1768866618820,0.56563155,133.68,133.65,3.01076131]
[1768866620122,7.48067506,133.68,133.65,3.01076131]
[1768866620299,7.48067506,133.68,133.61,80.21034508]
[1768866620300,0.56563155,133.67,133.61,7.48421746]
[1768866620498,0.56563155,133.66,133.62,3.01076131]
[1768866620711,0.56563155,133.65,133.61,10.49497877]
[1768866620911,0.56563155,133.65,133.61,10.71967583]
[1768866621201,0.56563155,133.65,133.62,3.01076131]
[1768866621400,0.56563155,133.68,133.65,0.22539077]
[1768866621616,0.56563155,133.68,133.67,3.01076131]
[1768866621813,0.56563155,133.68,133.66,3.01076131]
[1768866622704,0.56563155,133.68,133.65,0.22539077]
[1768866622905,0.56563155,133.68,133.66,3.01076131]
[1768866624122,0.50563156,133.68,133.66,3.01076131]
[1768866626926,0.50563156,133.68,133.67,3.01076131]
[1768866627425,0.50563156,133.68,133.66,3.01076131]
[1768866630429,0.58054051,133.67,133.63,7.77553941]
[1768866630635,0.52054052,133.67,133.64,3.01076131]
[1768866631833,0.52054052,133.67,133.65,3.01076131]
[1768866632532,0.52054052,133.67,133.63,7.83736136]
[1768866632824,0.52054052,133.67,133.64,3.01076131]
[1768866633614,0.52054052,133.67,133.63,10.84812267]
[1768866634014,0.52054052,133.67,133.63,7.83736136]
[1768866634229,0.52054052,133.67,133.64,3.01076131]
[1768866634626,0.58054051,133.65,133.6,0.35601811]
[1768866634933,0.58054051,133.65,133.61,3.01076131]
[1768866635115,0.58054051,133.64,133.6,0.35601811]
[1768866635316,0.58054051,133.63,133.59,10.85234686]
[1768866635516,0.52054052,133.63,133.59,10.85234686]
[1768866638138,0.52054052,133.63,133.59,10.49632875]
[1768866638337,0.52054052,133.63,133.6,0.42525208]
[1768866639649,0.52054052,133.63,133.6,10.92101116]
[1768866646843,0.52054052,133.63,133.6,0.42525208]
[1768866647147,0.57776523,133.62,133.59,0.45171563]
[1768866647352,0.57776523,133.62,133.59,3.46247694]
[1768866648747,0.57776523,133.62,133.59,10.94802523]
[1768866649351,0.57776523,133.62,133.59,7.93726392]
[1768866649552,0.57776523,133.62,133.59,10.94802523]
[1768866655631,0.57776523,133.62,133.59,10.4963096]
[1768866655951,0.59417206,133.6,133.57,7.48669175]
[1768866656254,0.59417206,133.6,133.56,10.49774698]
[1768866659257,0.59417206,133.6,133.56,7.48698567]
[1768866659555,0.59417206,133.6,133.56,10.98676303]
[1768866660558,3.01076131,133.6,133.56,7.97600172]
[1768866660744,0.59417206,133.59,133.56,7.48698567]
[1768866660944,0.59417206,133.59,133.56,10.49774698]
[1768866661460,0.59417206,133.59,133.56,10.99161608]
[1768866662948,0.59417206,133.59,133.56,10.99480405]
[1768866663952,0.59417206,133.59,133.56,10.50093495]
[1768866664356,0.59417206,133.59,133.55,7.48754877]
[1768866664554,3.60812134,133.58,133.54,7.48813308]
[1768866664756,0.59417206,133.57,133.54,7.48813308]
[1768866664954,0.53417207,133.57,133.54,7.48813308]
[1768866665739,0.53417207,133.57,133.54,8.05137827]
[1768866666356,0.53417207,133.57,133.55,3.01394928]
[1768866666558,0.47417208,133.57,133.54,11.06532755]
[1768866667065,0.41417209,133.57,133.54,11.06532755]
[1768866667446,0.41417209,133.57,133.53,7.48873627]
[1768866667651,3.01394928,133.57,133.53,7.48873627]
[1768866668046,3.01394928,133.57,133.53,8.10247394]
[1768866668246,10.50033169,133.58,133.53,11.11642322]
[1768866668639,26.20175896,133.58,133.51,0.61373767]
[1768866668852,3.01394928,133.55,133.51,3.62768695]
[1768866669055,0.59417206,133.54,133.51,3.62768695]
[1768866669563,0.59417206,133.54,133.51,11.11773483]
[1768866670868,0.59417206,133.54,133.51,8.10378555]
[1768866671061,0.59417206,133.54,133.51,11.11773483]
[1768866672955,0.59417206,133.53,133.5,3.01394928]
[1768866673156,0.59417206,133.52,133.49,3.90803602]
[1768866673557,0.59417206,133.52,133.5,3.01394928]
[1768866673764,0.59417206,133.53,133.5,3.01394928]
[1768866674469,0.59417206,133.52,133.49,6.9219853]
[1768866675348,0.59417206,133.52,133.49,14.41317605]
[1768866675662,0.59417206,133.52,133.49,3.01394928]
[1768866676248,0.59417206,133.52,133.49,10.50508087]
[1768866676664,0.59417206,133.52,133.49,3.01394928]
[1768866677453,0.59417206,133.52,133.48,8.1052195]
[1768866677653,0.59417206,133.52,133.49,3.01394928]
[1768866678856,0.59417206,133.52,133.48,8.1052195]
[1768866679063,0.59417206,133.52,133.49,3.01394928]
[1768866679466,0.59417206,133.52,133.48,8.1052195]
[1768866679668,0.59417206,133.52,133.49,3.01394928]
[1768866679883,0.59417206,133.51,133.48,1e-08]
[1768866680178,0.59417206,133.5,133.48,1e-08]
[1768866680479,0.53417207,133.5,133.48,1e-08]
[1768866681967,3.01394928,133.49,133.46,1e-08]
[1768866682269,0.59417206,133.47,133.46,1e-08]
[1768866682472,0.53417207,133.47,133.46,1e-08]
[1768866683255,35.12466172,133.52,133.46,1e-08]
[1768866683469,10.50425385,133.51,133.46,1e-08]
[1768866683661,26.21549369,133.51,133.46,1e-08]
[1768866683867,3.01394928,133.5,133.46,3.01394929]
[1768866684469,0.63659272,133.49,133.46,3.01394929]
[1768866685186,0.63659272,133.49,133.46,8.17435834]
[1768866685364,0.63659272,133.49,133.46,11.18830762]
[1768866686264,0.63659272,133.49,133.46,1e-08]
[1768866686461,0.63659272,133.49,133.46,3.01394929]
[1768866686666,0.63659272,133.49,133.46,11.18825222]
[1768866687081,0.63659272,133.49,133.46,0.6814833]
[1768866687384,0.63659272,133.49,133.46,3.69543258]
[1768866687581,0.63659272,133.49,133.46,11.18814637]
[1768866688108,10.50410934,133.51,133.47,0.68148329]
[1768866688109,0.63659272,133.5,133.47,0.68148329]
[1768866688277,0.63659272,133.51,133.48,0.68148329]
[1768866688784,0.63659272,133.51,133.48,3.69543257]
[1768866690291,0.63659272,133.51,133.48,11.1870922]
[1768866696490,0.63659272,133.51,133.48,8.17314292]
[1768866696884,0.63659272,133.51,133.48,11.1870922]
[1768866697591,0.63659272,133.51,133.49,3.01394928]
[1768866697789,0.63659272,133.51,133.48,8.17314292]
[1768866698086,0.63659272,133.51,133.49,3.01394928]
[1768866698392,0.63659272,133.51,133.46,7.492398]
[1768866698598,0.63659272,133.51,133.47,3.01394928]
[1768866699889,0.63659272,133.51,133.46,8.17388129]
[1768866700380,0.63659272,133.5,133.47,3.01394928]
[1768866700593,0.63659272,133.49,133.46,1e-08]
[1768866702380,0.63659272,133.49,133.46,3.01394929]
[1768866702789,0.63659272,133.49,133.46,1e-08]
[1768866703394,0.63659272,133.49,133.46,3.01394929]
[1768866703799,0.63659272,133.49,133.47,3.01394928]
[1768866704003,0.66882443,133.51,133.48,3.73499936]
[1768866704177,0.66882443,133.51,133.49,3.01394928]
[1768866704515,96.21391677,133.52,133.5,3.01394928]
[1768866704674,96.21391677,133.52,133.49,0.72105008]
[1768866704878,96.21391677,133.52,133.5,3.01394928]
[1768866705693,96.21391677,133.52,133.49,0.72105008]
[1768866705999,96.21391677,133.52,133.5,3.01394928]
[1768866706184,0.66882443,133.51,133.5,3.01394928]
[1768866706382,96.21391677,133.52,133.5,3.01394928]
[1768866706782,0.66882443,133.51,133.5,3.01394928]
[1768866706982,0.66882443,133.51,133.48,8.21262704]
[1768866707207,0.66882443,133.51,133.5,3.01394928]
[1768866709289,0.66882443,133.53,133.5,3.01394928]
[1768866711309,0.66882443,133.53,133.49,0.72105008]
[1768866711489,0.66882443,133.53,133.5,3.01394928]
[1768866714110,0.66882443,133.53,133.49,8.21208571]
[1768866714291,0.66882443,133.53,133.5,3.01394928]